fUSD/lending_fUSD_20251027
["ID","MTS","AMOUNT","RATE_DAILY","PERIOD"]
[392494837,1761565841668,-4979.0,0.00037129,2]
[392494838,1761565841679,-500.0,0.00037134,2]
[392494839,1761565841689,-500.0,0.00037135,28]
[392494840,1761565841699,-500.0,0.00037135,28]
[392494841,1761565841710,-500.0,0.00037135,28]
[392494842,1761565841722,-500.0,0.00037135,28]
[392494843,1761565841730,-500.0,0.00037135,28]
[392494844,1761565841739,-500.0,0.00037135,28]
[392494845,1761565841748,-534.09559345,0.00037135,28]
[392494846,1761565841757,-677.43752035,0.00037137,10]
[392494847,1761565841766,-162.35,0.00037138,120]
[392494848,1761565841775,-1425.0,0.00037141,2]
[392494849,1761565841784,-1425.0,0.00037146,2]
[392494850,1761565841793,-4771.0,0.00037151,2]
[392494851,1761565841802,-81628.7518704,0.00037154,4]
[392494852,1761565841903,-80090.5594941,0.00037154,4]
[392494853,1761565841913,-500.0,0.00037157,2]
[392494854,1761565841922,-532.35,0.00037164,28]
[392494855,1761565841931,-532.35,0.00037164,28]
[392494856,1761565841940,-331.2737241,0.00037164,28]
[392494857,1761565841949,-500.0,0.00037164,7]
[392494858,1761565841958,-500.0,0.00037164,7]
[392494859,1761565841968,-500.0,0.00037164,2]
[392494860,1761565841978,-500.0,0.00037164,2]
[392494861,1761565841988,-500.0,0.00037164,2]
[392494862,1761565841999,-20407.1879676,0.00037165,4]
[392494863,1761565842010,-22883.0169983,0.00037165,4]
[392494864,1761565842019,-180.50584811,0.00037165,2]
[392494865,1761565842027,-150.71,0.00037165,2]
[392494866,1761565842038,-163.04,0.00037165,2]
[392494867,1761565842047,-1000.0,0.00037168,7]
[392494868,1761565842056,-1425.0,0.00037168,2]
[392494869,1761565842066,-500.0,0.00037173,5]
[392494870,1761565842075,-500.0,0.00037173,5]
[392494871,1761565842084,-500.0,0.00037173,5]
[392494872,1761565842093,-500.0,0.00037173,5]
[392494873,1761565842102,-500.0,0.00037173,5]
[392494874,1761565842111,-500.0,0.00037173,5]
[392494875,1761565842120,-500.0,0.00037173,5]
[392494876,1761565842129,-500.0,0.00037173,5]
[392494877,1761565842138,-500.0,0.00037173,5]
[392494878,1761565842147,-502.10628795,0.00037173,5]
[392494879,1761565842156,-327.50826095,0.00037173,5]
[392494880,1761565842166,-501.66177155,0.00037173,5]
[392494881,1761565842176,-20407.1879676,0.00037174,4]
[392494882,1761565842185,-11441.5084992,0.00037174,4]
[392494883,1761565842195,-122443.127806,0.00037175,4]
[392494884,1761565842205,-125856.593491,0.00037175,4]
[392494885,1761565842214,-178.3152953,0.00037178,7]
[392494886,1761565842223,-1425.0,0.00037182,2]
[392494887,1761565842233,-4310.1492647,0.00037183,2]
[392494888,1761565842242,-500.0,0.00037183,2]
[392494889,1761565842252,-20407.1879676,0.00037184,4]
[392494890,1761565842261,-22883.0169983,0.00037184,4]
[392494891,1761565842270,-500.0,0.00037184,7]
[392494892,1761565842279,-608.57263053,0.00037184,2]
[392494893,1761565842288,-500.0,0.00037184,2]
[392494894,1761565842296,-999.0,0.00037184,120]
[392494895,1761565842306,-11441.5084992,0.00037185,4]
[392494896,1761565842315,-40814.3759352,0.00037185,4]
[392494897,1761565842324,-194505.644486,0.00037185,4]
[392494898,1761565842334,-150.71,0.00037185,2]
[392494899,1761565842343,-163.04,0.00037185,2]
[392494900,1761565842353,-153.52293,0.00037185,14]
[392494901,1761565842363,-151.0,0.00037185,31]
[392494902,1761565842372,-151.0,0.00037185,31]
[392494903,1761565842381,-152.309215,0.00037185,31]
[392494904,1761565842393,-153.85031,0.00037185,31]
[392494905,1761565842403,-153.879395,0.00037185,31]
[392494906,1761565842412,-151.0,0.00037185,31]
[392494907,1761565842421,-176.576927,0.00037185,31]
[392494908,1761565842432,-151.0,0.00037185,31]
[392494909,1761565842440,-152.377371,0.00037185,31]
[392494910,1761565842450,-151.0,0.00037185,31]
[392494911,1761565842460,-151.0,0.00037185,31]
[392494912,1761565842469,-151.0,0.00037185,31]
[392494913,1761565842478,-151.0,0.00037185,31]
[392494914,1761565842487,-155.572859,0.00037185,31]
[392494915,1761565842496,-151.0,0.00037185,31]
[392494916,1761565842505,-151.0,0.00037185,10]
[392494917,1761565842514,-520.00470585,0.00037188,120]
[392494918,1761565842524,-532.35,0.00037191,28]
[392494919,1761565842533,-151.0,0.00037194,2]
[392494920,1761565842542,-12492.09146571,0.00037194,2]
[392494921,1761565842552,-301.18332806,0.00037194,2]
[392494922,1761565842561,-1000.0,0.00037194,2]
[392494923,1761565842570,-1000.0,0.00037194,2]
[392494924,1761565842580,-1000.0,0.00037194,2]
[392494925,1761565842589,-1000.0,0.00037194,2]
[392494926,1761565842598,-1000.0,0.00037194,2]
[392494927,1761565842609,-1000.0,0.00037194,2]
[392494928,1761565842619,-1000.0,0.00037194,2]
[392494929,1761565842627,-1000.0,0.00037194,2]
[392494930,1761565842636,-1000.0,0.00037194,2]
[392494931,1761565842646,-845.09192012,0.00037194,2]
[392494932,1761565842655,-532.35,0.00037194,28]
[392494933,1761565842664,-532.35,0.00037194,28]
[392494934,1761565842673,-532.35,0.00037194,28]
[392494935,1761565842682,-532.35,0.00037194,28]
[392494936,1761565842691,-532.35,0.00037194,28]
[392494937,1761565842700,-532.35,0.00037194,28]
[392494938,1761565842709,-532.35,0.00037194,28]
[392494939,1761565842719,-532.35,0.00037194,28]
[392494940,1761565842728,-532.35,0.00037194,28]
[392494941,1761565842736,-532.35,0.00037194,28]
[392494942,1761565842746,-532.35,0.00037194,28]
[392494943,1761565842755,-532.35,0.00037194,28]
[392494944,1761565842763,-532.35,0.00037194,28]
[392494945,1761565842773,-532.35,0.00037194,28]
[392494946,1761565842782,-532.35,0.00037194,28]
[392494947,1761565842791,-532.35,0.00037194,28]
[392494948,1761565842800,-532.35,0.00037194,28]
[392494949,1761565842809,-532.35,0.00037194,28]
[392494950,1761565842819,-532.38296765,0.00037194,28]
[392494951,1761565842828,-2091.61426,0.00037194,2]
[392494952,1761565842837,-235.79973413,0.00037194,2]
[392494953,1761565842847,-7903.87255301,0.00037195,31]
[392494954,1761565842859,-1017612.80615971,0.00037195,50]
[392494956,1761565842868,-2479137.24869543,0.00037195,50]
[392494964,1761565843343,-159.59103015,0.00037195,50]
[392494966,1761565843696,-82788.15002145,0.00037195,50]
[392494967,1761565843712,-516687.70590439,0.00037195,50]
[392494970,1761565846137,-1000.0,0.000369,2]
[392494971,1761565846146,-151.0,0.00037194,2]
[392494972,1761565846156,-107.00567535,0.00037195,50]
[392494973,1761565846192,-396.6919199,0.00037195,50]
[392494974,1761565846319,-2569.52598853,0.00037195,50]
[392494975,1761565846458,-3547.26449952,0.00037195,50]
[392494976,1761565870365,335.7166258,0.00037225,120]
[392494977,1761565935050,500.0,0.00016212,2]
[392494978,1761565935081,500.0,0.00016212,2]
[392494979,1761565935444,922.59848915,0.00012,2]
[392494981,1761565942786,606.83847559,0.00016212,2]
[392494982,1761565944007,181.9775457,0.00016212,2]
[392494983,1761565944862,348.71508197,0.00016212,2]
[392494984,1761566107026,396.38,0.00013699,2]
[392494985,1761566107299,396.38,0.00020187,2]
[392494987,1761566235049,500.0,0.00016212,2]
[392494988,1761566370006,1000.0,0.0002,2]
[392494989,1761566376925,1045.0,0.00037225,50]
[392494990,1761566390208,1000.0,0.00019,2]
[392494991,1761566472162,1050.71,0.00021212,2]
[392494992,1761566535097,500.0,0.00016212,2]
[392494993,1761566558216,35000.0,0.0002,2]
[392494994,1761566617267,151.42017802,0.00037225,120]
[392494995,1761566840154,600.0,0.00016212,2]
[392494996,1761566945095,-180.0,0.00022,2]
[392494997,1761566952125,-500.0,0.00024932,2]
[392494998,1761566952144,-151.0,0.00024932,2]
[392494999,1761566952164,-1238.51225516,0.00025126,2]
[392495000,1761566952183,-156.587,0.0002548,2]
[392495001,1761566952319,-162.380719,0.00026028,2]
[392495002,1761566952338,-168.3888056,0.00026576,2]
[392495003,1761566952358,-396.38,0.00026676,2]
[392495004,1761566952377,-476.74869043,0.00027,3]
[392495005,1761566952397,-174.61919141,0.00027124,2]
[392495006,1761566952415,-150.47895714,0.00027397,5]
[392495007,1761566952435,-150.18,0.00027563,2]
[392495008,1761566952454,-181.08010149,0.00027672,2]
[392495009,1761566952472,-1278.90915432,0.00028,2]
[392495010,1761566952491,-187.78006525,0.0002822,2]
[392495011,1761566952510,-194.72792766,0.00028768,2]
[392495012,1761566952530,-150.0,0.00028877,2]
[392495013,1761566952550,-255.94081338,0.00028913,2]
[392495014,1761566952569,-492.45,0.00029193,2]
[392495015,1761566952591,-160.31295244,0.00029316,2]
[392495016,1761566952609,-159.98,0.00029589,2]
[392495017,1761566952629,-150.0,0.00029661,2]
[392495018,1761566952650,-159.98,0.00030245,2]
[392495019,1761566952669,-250.0,0.00030303,2]
[392495020,1761566952688,-159.98,0.00030901,2]
[392495021,1761566952708,-269.0,0.00030988,2]
[392495022,1761566952728,-300.0,0.00030988,2]
[392495023,1761566952747,-150.18,0.00030988,2]
[392495024,1761566952770,-333.73561672,0.00031242,2]
[392495026,1761566968241,-336.97880169,0.00031242,2]
[392495027,1761566968269,-1365.83657228,0.00031457,2]
[392495028,1761566968290,-400.0,0.00031471,3]
[392495029,1761566968311,-1600.0,0.00031471,3]
[392495030,1761566968331,-500.0,0.00031473,5]
[392495031,1761566968352,-500.0,0.00031473,5]
[392495032,1761566968373,-47.56351803,0.00031473,5]
[392495043,1761567032343,-599.64834105,0.00031472,3]
[392495044,1761567032398,-1000.35165895,0.00031472,3]
[392495045,1761567032407,-113269.85943966,0.00031473,2]
[392495046,1761567032419,-25890.05154745,0.00031473,2]
[392495047,1761567032453,-2719.9916594,0.00031473,2]
[392495086,1761567040389,-154.1432092,0.00031472,2]
[392495087,1761567040399,-500.0,0.00031472,2]
[392495088,1761567040409,-500.0,0.00031472,2]
[392495089,1761567040419,-500.0,0.00031472,2]
[392495090,1761567040429,-500.0,0.00031472,2]
[392495091,1761567040438,-500.0,0.00031472,2]
[392495092,1761567040448,-500.0,0.00031472,2]
[392495093,1761567040457,-556.06212227,0.00031472,2]
[392495094,1761567040467,-10365.90699696,0.00031473,2]
[392495095,1761567040478,-6197.33527593,0.00031473,2]
[392495096,1761567040489,-4525.11811655,0.00031473,2]
[392495097,1761567040501,-2042.44001805,0.00031473,2]
[392495098,1761567040511,-452.43648197,0.00031473,5]
[392495099,1761567040520,-151.0,0.00031481,2]
[392495100,1761567040530,-151.0,0.00031481,2]
[392495101,1761567040539,-151.0,0.00031481,2]
[392495102,1761567040549,-151.0,0.00031481,2]
[392495103,1761567040558,-151.0,0.00031481,2]
[392495104,1761567040568,-151.0,0.00031481,2]
[392495105,1761567040577,-151.0,0.00031481,2]
[392495106,1761567040586,-151.0,0.00031481,2]
[392495107,1761567040596,-151.0,0.00031481,2]
[392495108,1761567040605,-151.0,0.00031481,2]
[392495109,1761567040617,-151.0,0.00031481,2]
[392495110,1761567040627,-151.0,0.00031481,2]
[392495111,1761567040636,-151.0,0.00031481,2]
[392495112,1761567040645,-151.0,0.00031481,2]
[392495113,1761567040655,-435.19422145,0.00031498,2]
[392495114,1761567040670,-64.80577855,0.00031498,2]
[392495115,1761567040680,-218.56089012,0.00031498,2]
[392495116,1761567040689,-448.24340394,0.00031498,2]
[392495117,1761567040699,-308.14158047,0.00031498,2]
[392495118,1761567040708,-3088.88821575,0.00031499,2]
[392495119,1761567040719,-4432.26839026,0.00031499,2]
[392495120,1761567040732,-4970.9348597,0.00031499,2]
[392495121,1761567040742,-168.724,0.00031499,29]
[392495122,1761567040752,-1000.0,0.000315,2]
[392495123,1761567040761,-22750.29495176,0.000315,2]
[392495124,1761567040772,-1363.68834929,0.000315,2]
[392495125,1761567040784,-2318.67846684,0.000315,2]
[392495126,1761567040794,-159.98,0.00031557,2]
[392495127,1761567040808,-3522.64,0.00031705,2]
[392495128,1761567040820,-610.0,0.00031839,2]
[392495129,1761567040830,-1000.0,0.00032021,5]
[392495130,1761567040839,-1000.0,0.00032021,5]
[392495131,1761567040849,-462.31058477,0.00032021,5]
[392495132,1761567040859,-1365.83657227,0.00032083,2]
[392495133,1761567040868,-1852.42,0.00032148,2]
[392495134,1761567040877,-285.13992357,0.00032174,2]
[392495135,1761567040886,-159.98,0.00032213,2]
[392495136,1761567040896,-606.07,0.00032406,2]
[392495137,1761567040905,-842.45192854,0.00032568,5]
[392495138,1761567040914,-240.82981333,0.00032568,5]
[392495139,1761567040923,-470.12568617,0.0003271,2]
[392495140,1761567040935,-895.7108861,0.0003271,2]
[392495141,1761567040944,-159.98,0.00032868,2]
[392495142,1761567040955,-500.0,0.00032876,2]
[392495143,1761567040964,-2274.29010975,0.00032966,2]
[392495144,1761567040975,-7722.40989025,0.00032966,2]
[392495145,1761567040984,-600.0,0.00033,5]
[392495146,1761567040993,-396.38,0.00033165,2]
[392495147,1761567041004,-1365.83657227,0.00033336,2]
[392495148,1761567041017,-178.3152953,0.0003346,4]
[392495149,1761567041026,-159.98,0.00033524,2]
[392495150,1761567041036,-1365.83657227,0.00033963,2]
[392495151,1761567041045,-1257.0,0.00034009,3]
[392495152,1761567041055,-150.18,0.00034413,2]
[392495153,1761567041065,-1365.83657227,0.00034589,2]
[392495154,1761567041075,-1964.12376804,0.00034735,5]
[392495155,1761567041084,-3098.39,0.00034958,2]
[392495156,1761567041094,-181.8529063,0.00035165,2]
[392495157,1761567041103,-1324.37,0.00035188,2]
[392495158,1761567041113,-1000.0,0.000352,2]
[392495159,1761567041122,-1365.83657227,0.00035216,2]
[392495160,1761567041131,-1006.3214,0.00035264,2]
[392495161,1761567041141,-569.1,0.00035265,14]
[392495162,1761567041150,-313.13464191,0.00035265,2]
[392495163,1761567041160,-578.20924308,0.00035265,2]
[392495164,1761567041169,-500.0,0.00035265,2]
[392495165,1761567041178,-500.0,0.00035265,2]
[392495167,1761567041188,-500.0,0.00035265,2]
[392495169,1761567041197,-209.41063482,0.00035265,2]
[392495171,1761567041209,-290.58936518,0.00035265,2]
[392495174,1761567041223,-500.0,0.00035265,2]
[392495176,1761567041232,-500.0,0.00035265,2]
[392495194,1761567041386,-500.0,0.00035265,2]
[392495196,1761567041396,-500.0,0.00035265,2]
[392495198,1761567041406,-500.0,0.00035265,2]
[392495200,1761567041415,-500.0,0.00035265,2]
[392495202,1761567041424,-250.0,0.00035265,2]
[392495205,1761567041435,-500.0,0.00035265,2]
[392495207,1761567041444,-500.0,0.00035265,2]
[392495209,1761567041454,-250.0,0.00035265,2]
[392495211,1761567041463,-500.0,0.00035265,2]
[392495213,1761567041473,-574.12855637,0.00035265,2]
[392495214,1761567041483,-250.0,0.00035265,2]
[392495216,1761567041492,-500.0,0.00035265,2]
[392495218,1761567041502,-500.0,0.00035265,2]
[392495219,1761567041511,-500.0,0.00035265,2]
[392495220,1761567041520,-250.0,0.00035265,2]
[392495221,1761567041531,-500.0,0.00035265,2]
[392495222,1761567041540,-220.0,0.00035265,2]
[392495223,1761567041550,-500.0,0.00035265,2]
[392495224,1761567041564,-250.0,0.00035265,2]
[392495225,1761567041574,-500.0,0.00035265,2]
[392495226,1761567041583,-500.0,0.00035265,2]
[392495227,1761567041592,-220.0,0.00035265,2]
[392495228,1761567041601,-500.0,0.00035265,2]
[392495229,1761567041611,-250.0,0.00035265,2]
[392495230,1761567041620,-500.0,0.00035265,2]
[392495231,1761567041629,-189.04685243,0.00035265,2]
[392495232,1761567041639,-500.0,0.00035265,2]
[392495233,1761567041648,-500.0,0.00035265,2]
[392495234,1761567041657,-250.0,0.00035265,2]
[392495235,1761567041666,-500.0,0.00035265,2]
[392495236,1761567041676,-500.0,0.00035265,2]
[392495237,1761567041685,-250.0,0.00035265,2]
[392495238,1761567041695,-500.0,0.00035265,2]
[392495239,1761567041706,-250.0,0.00035265,2]
[392495240,1761567041715,-500.0,0.00035265,2]
[392495241,1761567041726,-250.0,0.00035265,2]
[392495242,1761567041735,-250.0,0.00035265,2]
[392495243,1761567041744,-500.0,0.00035265,2]
[392495244,1761567041753,-250.0,0.00035265,2]
[392495245,1761567041763,-250.0,0.00035265,2]
[392495246,1761567041772,-500.0,0.00035265,2]
[392495247,1761567041781,-250.0,0.00035265,2]
[392495248,1761567041790,-500.0,0.00035265,2]
[392495249,1761567041803,-250.0,0.00035265,2]
[392495250,1761567041812,-500.0,0.00035265,2]
[392495251,1761567041822,-500.0,0.00035265,2]
[392495252,1761567041831,-250.0,0.00035265,2]
[392495253,1761567041841,-250.0,0.00035265,2]
[392495254,1761567041850,-250.0,0.00035265,2]
[392495255,1761567041859,-250.0,0.00035265,2]
[392495256,1761567041870,-394.92652342,0.00035265,2]
[392495257,1761567041879,-250.0,0.00035265,2]
[392495258,1761567041889,-250.0,0.00035265,2]
[392495259,1761567041898,-250.0,0.00035265,2]
[392495260,1761567041907,-250.0,0.00035265,2]
[392495261,1761567041916,-250.0,0.00035265,2]
[392495262,1761567041925,-250.0,0.00035265,2]
[392495263,1761567041935,-250.0,0.00035265,2]
[392495264,1761567041944,-250.0,0.00035265,2]
[392495265,1761567041961,-250.0,0.00035265,2]
[392495266,1761567041972,-250.0,0.00035265,2]
[392495267,1761567041981,-250.0,0.00035265,2]
[392495268,1761567041990,-250.0,0.00035265,2]
[392495269,1761567042000,-250.0,0.00035265,2]
[392495270,1761567042011,-250.0,0.00035265,2]
[392495271,1761567042021,-250.0,0.00035265,2]
[392495272,1761567042030,-250.0,0.00035265,2]
[392495273,1761567042039,-250.0,0.00035265,2]
[392495274,1761567042049,-250.0,0.00035265,2]
[392495275,1761567042059,-250.0,0.00035265,2]
[392495276,1761567042069,-201.00939533,0.00035265,2]
[392495277,1761567042079,-250.0,0.00035265,2]
[392495278,1761567042088,-250.0,0.00035265,2]
[392495279,1761567042098,-277.35679052,0.00035265,2]
[392495280,1761567042109,-250.0,0.00035265,2]
[392495281,1761567042120,-500.0,0.00035265,2]
[392495282,1761567042131,-500.0,0.00035265,2]
[392495283,1761567042141,-500.0,0.00035265,2]
[392495284,1761567042152,-500.0,0.00035265,2]
[392495285,1761567042162,-620.0,0.00035265,2]
[392495286,1761567042172,-500.0,0.000353,5]
[392495287,1761567042182,-511.64205602,0.000353,5]
[392495288,1761567042192,-642.94,0.0003532,2]
[392495289,1761567042203,-659.46265031,0.00035375,2]
[392495290,1761567042213,-569.1,0.00035539,14]
[392495291,1761567042222,-500.0,0.00035616,30]
[392495292,1761567042232,-181.85290628,0.00035808,2]
[392495293,1761567042242,-569.1,0.00035813,14]
[392495294,1761567042251,-595.37131296,0.00035813,2]
[392495295,1761567042261,-20043.6200959,0.00035832,3]
[392495296,1761567042271,-1365.83657227,0.00035842,2]
[392495297,1761567042280,-1039.56731829,0.00035848,5]
[392495298,1761567042289,-500.0,0.0003589,30]
[392495299,1761567042299,-498.43,0.00035918,14]
[392495300,1761567042309,-677.16036097,0.00035933,2]
[392495301,1761567042319,-569.1,0.00036087,14]
[392495302,1761567042328,-500.0,0.00036164,30]
[392495303,1761567042337,-12258.4787464,0.00036261,2]
[392495304,1761567042455,-7741.5112536,0.00036261,2]
[392495305,1761567042465,-966.14315198,0.00036261,2]
[392495306,1761567042495,-1109.0,0.00036261,2]
[392495307,1761567042540,-3246.8303384,0.00036261,2]
[392495308,1761567042597,-10589.18650962,0.00036261,2]
[392495309,1761567042606,-9999.99,0.00036261,2]
[392495310,1761567042616,-500.0,0.00036273,5]
[392495311,1761567042625,-500.0,0.00036273,5]
[392495312,1761567042634,-500.0,0.00036273,2]
[392495313,1761567042643,-500.0,0.00036273,5]
[392495314,1761567042653,-500.0,0.00036273,5]
[392495315,1761567042662,-504.14520199,0.00036273,5]
[392495316,1761567042671,-500.0,0.00036273,5]
[392495317,1761567042680,-500.0,0.00036273,5]
[392495318,1761567042689,-500.0,0.00036273,3]
[392495319,1761567042698,-677.16036097,0.00036314,2]
[392495320,1761567042707,-569.1,0.00036361,14]
[392495321,1761567042716,-617.40005154,0.00036361,2]
[392495322,1761567042726,-500.0,0.00036438,30]
[392495323,1761567042735,-677.16036097,0.00036449,2]
[392495324,1761567042744,-181.85290628,0.00036452,2]
[392495325,1761567042753,-1365.83657227,0.00036469,2]
[392495326,1761567042762,-287.61899177,0.00036634,2]
[392495327,1761567042772,-569.14891154,0.00036635,14]
[392495328,1761567042781,-500.0,0.00036712,30]
[392495329,1761567042791,-677.160361,0.00036798,2]
[392495330,1761567042805,-1743.01189,0.0003682,2]
[392495331,1761567042814,-904.00526626,0.00036821,5]
[392495332,1761567042824,-1000.0,0.00036821,5]
[392495333,1761567042834,-1000.0,0.00036821,2]
[392495334,1761567042845,-1115.33592914,0.00036821,5]
[392495335,1761567042855,-1000.0,0.00036821,5]
[392495336,1761567042864,-640.24385345,0.00036909,2]
[392495337,1761567042874,-1425.0,0.00036959,2]
[392495338,1761567042884,-1000.0,0.00036964,7]
[392495339,1761567042893,-1425.0,0.00036975,2]
[392495340,1761567042903,-4294.00899358,0.00036978,2]
[392495341,1761567042913,-166.42719616,0.00036985,15]
[392495342,1761567042922,-1018.24539642,0.00036985,9]
[392495343,1761567042932,-500.0,0.00036986,30]
[392495344,1761567042941,-4294.00899356,0.00036991,2]
[392495345,1761567042951,-1121.6051,0.00036995,2]
[392495346,1761567042961,-500.0,0.00036998,2]
[392495347,1761567042970,-508.88606453,0.00036998,28]
[392495348,1761567042980,-500.0,0.00036999,28]
[392495349,1761567042990,-500.0,0.00036999,28]
[392495350,1761567043000,-1000.0,0.00037,7]
[392495351,1761567043010,-5000.14725836,0.00037,2]
[392495352,1761567043019,-20043.6200959,0.00037001,4]
[392495353,1761567043029,-4294.00899356,0.00037004,2]
[392495354,1761567043038,-4294.00899356,0.00037017,2]
[392495355,1761567043048,-4294.00899356,0.0003703,2]
[392495356,1761567043057,-4294.00899356,0.00037043,2]
[392495357,1761567043067,-220.21152218,0.00037044,7]
[392495358,1761567043077,-20043.6200959,0.00037047,4]
[392495359,1761567043086,-500.0,0.00037048,28]
[392495360,1761567043098,-500.0,0.00037048,28]
[392495361,1761567043111,-500.0,0.00037048,7]
[392495363,1761567043121,-526.67417626,0.00037048,28]
[392495365,1761567043130,-1743.01189,0.0003705,2]
[392495367,1761567043145,-1425.0,0.00037055,2]
[392495368,1761567043162,-1030.96831641,0.00037055,2]
[392495369,1761567043171,-837.40633027,0.00037055,11]
[392495370,1761567043181,-4294.00899356,0.00037056,2]
[392495371,1761567043190,-20043.6200959,0.00037057,4]
[392495372,1761567043200,-1425.0,0.0003706,2]
[392495373,1761567043209,-837.40633026,0.00037064,11]
[392495385,1761567043329,-500.0,0.00037064,28]
[392495386,1761567043342,-331.2737241,0.00037064,28]
[392495387,1761567043352,-1425.0,0.00037064,2]
[392495388,1761567043362,-162.26600295,0.00037064,10]
[392495389,1761567043371,-1030.96831637,0.00037067,2]
[392495390,1761567043380,-4294.00899356,0.00037069,2]
[392495391,1761567043390,-500.0,0.0003707,2]
[392495392,1761567043399,-1425.0,0.00037071,2]
[392495393,1761567043409,-20043.6200959,0.00037071,4]
[392495394,1761567043419,-837.40633026,0.00037072,11]
[392495395,1761567043428,-1119.0,0.00037072,5]
[392495396,1761567043437,-500.0,0.00037073,5]
[392495397,1761567043447,-150.0,0.00037073,5]
[392495398,1761567043456,-20043.6200959,0.00037075,4]
[392495399,1761567043466,-1030.96831637,0.00037078,2]
[392495400,1761567043475,-4294.00899356,0.00037082,2]
[392495401,1761567043485,-1425.0,0.00037083,2]
[392495402,1761567043494,-60130.8602876,0.00037085,4]
[392495403,1761567043503,-48769.5439505,0.00037085,4]
[392495404,1761567043513,-20043.6200959,0.0003709,4]
[392495405,1761567043522,-1030.96831637,0.0003709,2]
[392495406,1761567043531,-16256.5146502,0.0003709,4]
[392495407,1761567043540,-200.35848756,0.00037093,120]
[392495408,1761567043549,-210.41602144,0.00037093,120]
[392495409,1761567043558,-500.0,0.00037094,2]
[392495410,1761567043567,-2065.40715663,0.00037094,120]
[392495411,1761567043576,-120664.2345,0.00037095,2]
[392495412,1761567043585,-1000.0,0.00037095,2]
[392495413,1761567043595,-727.07819169,0.00037095,2]
[392495414,1761567043604,-1365.83657227,0.00037095,2]
[392495415,1761567043614,-181.85290628,0.00037095,2]
[392495416,1761567043624,-208.19864457,0.00037095,2]
[392495417,1761567043635,-4294.00899356,0.00037095,2]
[392495418,1761567043645,-5550.1883846,0.000371,2]
[392495420,1761567043655,-1030.96831637,0.00037102,2]
[392495422,1761567043667,-1030.96831637,0.00037113,2]
[392495423,1761567043678,-500.0,0.00037123,120]
[392495424,1761567043690,-166.42719615,0.00037125,15]
[392495425,1761567043701,-1030.96831637,0.00037125,2]
[392495426,1761567043712,-1425.0,0.00037128,2]
[392495427,1761567043723,-20043.6200959,0.00037142,4]
[392495428,1761567043734,-1425.0,0.00037143,2]
[392495429,1761567043745,-40087.2401917,0.00037145,4]
[392495430,1761567043756,-48769.5439505,0.00037145,4]
[392495432,1761567043769,-180.50584811,0.00037145,2]
[392495433,1761567043779,-150.71,0.00037145,2]
[392495434,1761567043790,-1425.0,0.0003715,2]
[392495435,1761567043802,-1225.70159168,0.0003715,50]
[392495436,1761567043814,-500.0,0.0003715,50]
[392495437,1761567043824,-500.0,0.0003715,50]
[392495438,1761567043835,-500.0,0.00037152,2]
[392495439,1761567043845,-20043.6200959,0.00037152,4]
[392495441,1761567043855,-32513.0293003,0.00037152,4]
[392495443,1761567043865,-160348.960767,0.00037154,4]
[392495445,1761567043875,-162565.146502,0.00037154,4]
[392495447,1761567043884,-500.0,0.00037157,2]
[392495449,1761567043893,-153.30198852,0.00037157,7]
[392495450,1761567043902,-32513.0293003,0.00037162,4]
[392495451,1761567043912,-500.0,0.00037164,28]
[392495452,1761567043923,-500.0,0.00037164,28]
[392495453,1761567043933,-500.0,0.00037164,2]
[392495454,1761567043943,-500.0,0.00037164,2]
[392495455,1761567043953,-113795.602551,0.00037165,4]